bitfinex/quotes_ETHUSD_20250210
["timestamp","ask_amount","ask_price","bid_price","bid_amount"]
[1739164260974,3.79277,2636.6,2636.4,2.82861587]
[1739164261884,3.7929,2636.5,2636.4,2.82861587]
[1739164262651,0.75600643,2637.6,2636.5,0.7589]
[1739164262868,3.79179,2637.3,2637.1,2.74430983]
[1739164263051,0.8215,2637.5,2637.1,2.74430983]
[1739164263263,3.79149,2637.5,2637.2,0.08488679]
[1739164263451,3.79143,2637.6,2637.2,0.08488679]
[1739164263703,3.79148,2637.5,2637.2,0.08488679]
[1739164263908,3.79162,2637.4,2637.2,0.08488679]
[1739164264116,7.58334,2637.4,2637.2,0.08488679]
[1739164264292,3.79175,2637.3,2637.2,0.08488679]
[1739164264788,3.0,2637.7,2637.2,0.08468739]
[1739164264971,3.79161,2637.4,2636.5,3.50320983]
[1739164265168,3.79233,2636.9,2636.6,0.08468739]
[1739164265388,3.79205,2637.1,2636.6,0.08468739]
[1739164265561,7.58421,2637.1,2636.6,0.08468739]
[1739164265890,3.79221,2637.0,2636.6,0.08468739]
[1739164266264,3.79234,2636.9,2636.6,0.08468739]
[1739164266998,3.79261,2636.7,2636.6,0.08468739]
[1739164267195,3.79247,2636.8,2636.2,2.74430983]
[1739164267502,3.79314,2636.4,2636.3,0.08496483]
[1739164267797,3.793,2636.5,2636.3,0.08496483]
[1739164268300,3.79269,2636.7,2636.3,0.08496483]
[1739164268498,3.79299,2636.5,2636.3,0.08496483]
[1739164268695,3.79269,2636.7,2636.3,0.08496483]
[1739164269307,3.79233,2636.9,2636.3,0.08496483]
[1739164269485,3.79477,2635.2,2635.1,0.7893]
[1739164269799,3.7942,2635.6,2635.1,0.7893]
[1739164269967,0.8312,2635.7,2635.1,0.7893]
[1739164270565,0.8312,2636.0,2635.1,3.53360983]
[1739164270897,0.8312,2636.0,2635.6,3.79409]
[1739164271366,0.8312,2636.0,2635.4,3.79444]
[1739164271782,0.8312,2636.0,2635.4,3.79434]
[1739164271974,0.8312,2636.3,2635.4,3.79434]
[1739164272200,1.02169861,2636.6,2636.0,2.74430983]
[1739164272400,0.19450531,2637.1,2636.1,0.7893]
[1739164272401,0.8312,2637.0,2636.1,0.7893]
[1739164272576,4.6235,2637.0,2636.2,3.79322]
[1739164272895,6.79235,2636.9,2636.2,3.79322]
[1739164273101,3.79233,2636.9,2636.1,0.7893]
[1739164273275,3.79262,2636.7,2636.1,0.7893]
[1739164273465,3.79233,2636.9,2636.2,3.79331]
[1739164273669,3.7925,2636.8,2636.1,0.7893]
[1739164273890,3.79263,2636.7,2636.1,0.7893]
[1739164274067,3.79306,2636.4,2635.8,4.58315]
[1739164274469,3.79332,2636.3,2635.8,0.7893]
[1739164274794,3.79332,2636.3,2635.7,2.74430983]
[1739164275102,3.79332,2636.3,2635.7,6.53831983]
[1739164276082,3.8312,2636.4,2635.7,6.53831983]
[1739164276283,3.8312,2636.4,2635.8,3.79389]
[1739164276670,7.62429,2636.4,2635.8,3.79389]
[1739164276866,0.8312,2637.0,2636.1,4.58278]
[1739164277071,4.62347,2637.0,2636.3,3.79319]
[1739164277305,3.79248,2636.8,2636.2,3.86753334]
[1739164277599,3.79248,2636.8,2636.3,0.07408587]
[1739164278398,3.79262,2636.7,2636.3,0.07408587]
[1739164278603,3.79262,2636.7,2636.1,4.58276]
[1739164278804,0.8312,2637.0,2636.5,3.7929]
[1739164279105,3.19450531,2637.1,2636.5,3.7929]
[1739164279309,3.79218,2637.0,2636.6,0.07408587]
[1739164279899,3.79242,2636.9,2636.6,0.07408587]
[1739164280100,3.79247,2636.8,2636.6,0.07408587]
[1739164280299,3.79247,2636.8,2636.3,2.74430983]
[1739164280508,3.79247,2636.8,2636.7,0.07408587]
[1739164280815,3.79326,2636.3,2635.8,0.7893]
[1739164281395,3.79326,2636.3,2635.7,2.74430983]
[1739164281396,3.7937,2636.0,2635.5,0.7893]
[1739164281591,3.7934,2636.2,2635.5,8.3778]
[1739164281783,3.7934,2636.2,2635.6,3.79414]
[1739164281996,3.79313,2636.4,2635.6,3.79414]
[1739164282195,3.79313,2636.4,2635.8,3.79382]
[1739164282437,3.79295,2636.5,2635.9,3.79374]
[1739164282777,3.79306,2636.4,2635.8,3.79382]
[1739164282987,3.79322,2636.3,2635.7,2.74430983]
[1739164283208,3.79355,2636.1,2635.5,0.7893]
[1739164283413,3.79363,2636.0,2635.5,0.7893]
[1739164283610,3.79334,2636.2,2635.5,0.7893]
[1739164283812,0.8312,2636.6,2635.7,2.74430983]
[1739164284013,3.79324,2636.3,2635.8,3.79378]
[1739164284312,3.0,2636.4,2635.7,3.79402]
[1739164284510,3.79323,2636.3,2635.7,2.74430983]
[1739164284890,3.79323,2636.3,2635.7,6.53834983]
[1739164285083,3.0,2636.4,2635.9,3.79375]
[1739164285289,3.0,2636.4,2635.7,6.53834983]
[1739164285485,3.79296,2636.5,2635.8,3.79382]
[1739164285790,3.79296,2636.5,2635.8,3.79377]
[1739164285998,7.58599,2636.5,2635.8,3.79377]
[1739164286196,3.79296,2636.5,2635.8,3.79377]
[1739164286422,3.79296,2636.5,2635.7,6.53823983]
[1739164286423,3.8312,2636.6,2635.9,3.79363]
[1739164286620,3.0,2636.6,2635.8,0.55]
[1739164286921,3.0,2636.6,2636.1,3.79339]
[1739164287706,0.8312,2636.9,2636.1,0.55]
[1739164287917,0.19450531,2637.1,2636.5,3.79289]
[1739164288104,3.19450531,2637.1,2636.6,3.79271]
[1739164288417,0.19450531,2637.1,2636.7,3.79252]
[1739164288595,3.79154,2637.5,2636.7,3.79252]
[1739164288797,3.79154,2637.5,2636.9,3.7923]
[1739164289506,3.79178,2637.3,2636.7,3.79252]
[1739164290301,3.79178,2637.3,2636.8,0.07353084]
[1739164290594,3.0,2637.4,2636.8,3.86597084]
[1739164290999,3.0,2637.4,2636.9,3.79231]
[1739164291421,3.79166,2637.4,2637.0,0.07353084]
[1739164291597,3.79177,2637.3,2636.7,3.79252]
[1739164291806,3.79177,2637.3,2636.8,0.07353084]
[1739164292325,3.79152,2637.5,2636.8,0.07353084]
[1739164292646,3.8312,2637.6,2636.9,3.79233]
[1739164292842,5.51534466,2637.7,2637.1,4.58128]
[1739164293008,3.0,2637.6,2637.2,0.07327073]
[1739164293591,3.79133,2637.6,2637.2,0.07327073]
[1739164294102,6.79133,2637.6,2637.2,0.07327073]
[1739164294302,6.79133,2637.6,2636.9,3.79233]
[1739164294523,3.79163,2637.4,2637.3,0.07327073]
[1739164294700,3.79163,2637.4,2636.8,0.7893]
[1739164294919,3.79163,2637.4,2637.3,0.07327073]
[1739164295111,3.79163,2637.4,2636.9,3.7923]
[1739164295312,3.79163,2637.4,2637.3,0.07327073]
[1739164295519,3.79163,2637.4,2636.8,4.58176]
[1739164295715,6.79137,2637.6,2637.3,0.07327073]
[1739164295920,6.79137,2637.6,2637.0,3.79209]
[1739164296397,10.58282,2637.6,2637.1,0.07327073]
[1739164296598,6.79137,2637.6,2637.1,0.07327073]
[1739164297438,6.79137,2637.6,2637.1,3.79201]
[1739164297619,3.0,2637.6,2637.2,3.86515073]
[1739164297925,6.79135,2637.6,2637.2,0.07327073]
[1739164298893,1.72415466,2637.7,2637.5,3.79136]
[1739164299106,0.8312,2637.9,2637.3,3.79175]
[1739164299107,4.62213,2637.9,2637.3,3.79175]
[1739164299292,4.62213,2637.9,2637.6,0.07327073]
[1739164299499,4.62213,2637.9,2637.3,3.79175]
[1739164299725,4.62213,2637.9,2637.7,0.07261188]
[1739164299937,4.62213,2637.9,2637.3,4.58126]
[1739164300223,7.62213,2637.9,2637.4,3.7916]
[1739164300437,7.62213,2637.9,2637.4,3.86421188]
[1739164300931,3.79062,2638.1,2637.4,0.07261188]
[1739164301132,0.8111,2638.2,2637.6,3.7912]
[1739164301344,3.7904,2638.3,2637.7,3.79103]
[1739164301648,3.7904,2638.3,2637.7,3.86364188]
[1739164301843,3.7904,2638.3,2637.8,3.79101]
[1739164302052,3.7904,2638.3,2637.8,0.0724299]
[1739164302053,3.79065,2638.1,2637.8,0.0724299]
[1739164302247,3.79065,2638.1,2637.6,0.7896]
[1739164302552,3.79113,2637.8,2637.3,0.7896]
[1739164302944,3.79128,2637.7,2637.3,0.7896]
[1739164303153,3.79128,2637.7,2637.2,2.74430983]
[1739164304051,3.79151,2637.5,2637.0,0.7896]
[1739164305330,3.79151,2637.5,2637.1,0.07212648]
[1739164305535,3.79162,2637.4,2637.1,0.07212648]
[1739164305739,3.79151,2637.5,2637.1,0.07212648]
[1739164306244,3.79162,2637.4,2637.1,0.07212648]
[1739164307463,3.79185,2637.3,2637.1,0.07212648]
[1739164307638,0.19414232,2637.7,2636.9,2.74430983]
[1739164307639,3.7919,2637.2,2636.9,2.74430983]
[1739164308432,3.79165,2637.4,2636.9,2.74430983]
[1739164309681,3.79136,2637.6,2636.9,6.53662983]
[1739164309860,3.79136,2637.6,2637.0,3.79213]
[1739164310429,3.79158,2637.5,2636.9,2.74430983]
[1739164310625,3.79136,2637.6,2636.9,6.53660983]
[1739164310940,3.79147,2637.5,2636.9,6.53660983]
[1739164311139,3.79136,2637.6,2637.0,3.79213]
[1739164311335,0.19414232,2637.7,2637.2,3.79188]
[1739164311534,3.79109,2637.8,2637.3,3.79173]
[1739164312133,7.58226,2637.8,2637.2,7.35538983]
[1739164312335,7.58226,2637.8,2637.2,0.8192]
[1739164312336,3.98051787,2637.8,2637.2,0.8192]
[1739164313462,3.98051787,2637.8,2637.2,4.61095]
[1739164313659,3.7912,2637.7,2637.2,0.8192]
[1739164313830,3.79133,2637.6,2637.2,0.8192]
[1739164314662,3.98051787,2637.8,2637.2,4.61098]
[1739164314845,0.18942787,2637.8,2637.3,3.79167]
[1739164315166,3.98045787,2637.8,2637.3,3.79167]
[1739164315466,0.18942787,2637.8,2637.4,3.79157]
[1739164315655,0.18942787,2637.8,2637.3,3.79167]
[1739164317075,0.18942787,2637.8,2637.3,7.58329]
[1739164317257,3.79085,2638.0,2637.4,3.79159]
[1739164317567,3.79098,2637.9,2637.3,7.58328]
[1739164317874,4.581,2638.1,2637.3,3.79175]
[1739164318046,0.7903,2638.1,2637.6,3.79131]
[1739164318241,3.79051,2638.2,2637.6,3.79131]
[1739164318469,0.005,2638.4,2637.9,3.79081]
[1739164319034,3.79529,2638.4,2637.8,6.53533983]
[1739164319435,3.79529,2638.4,2637.7,0.7517]
[1739164319741,3.79055,2638.2,2637.7,0.7517]
[1739164319934,3.79529,2638.4,2637.7,4.54287]
[1739164320247,3.79529,2638.4,2637.8,3.8626179]
[1739164320442,3.79055,2638.2,2637.8,0.0715979]
[1739164320672,3.79055,2638.2,2637.5,3.49600983]
[1739164320835,3.79069,2638.1,2637.9,0.07139865]
[1739164321031,3.79055,2638.2,2637.6,3.79132]
[1739164321238,3.79523,2638.4,2638.0,0.07139865]
[1739164321468,0.005,2638.4,2638.0,3.79073]
[1739164321679,0.005,2638.4,2638.1,0.07141598]
[1739164322477,0.005,2638.4,2638.2,3.79044]
[1739164322991,0.005,2638.4,2638.3,0.07141598]
[1739164323152,0.005,2638.4,2638.3,3.86172598]
[1739164323344,0.005,2638.4,2638.3,0.07141598]
[1739164323768,0.005,2638.4,2638.3,2.09070632]
[1739164323967,0.005,2638.4,2638.3,0.07141598]
[1739164324387,3.79517,2638.4,2638.3,0.07111284]
[1739164324687,0.005,2638.4,2638.0,0.7517]
[1739164324859,4.58547,2638.4,2638.3,0.07111284]
[1739164325063,0.7953,2638.4,2637.7,2.77099034]
[1739164325291,3.79055,2638.2,2637.7,0.7517]
[1739164325470,4.58549,2638.4,2637.7,6.56214034]
[1739164325789,3.79076,2638.0,2637.7,2.73492821]
[1739164325986,3.79053,2638.2,2637.7,2.73492821]
[1739164326380,4.77152515,2638.4,2637.8,4.58602]
[1739164326573,0.005,2638.4,2637.8,4.58595]
[1739164326767,3.79034,2638.3,2637.8,4.58595]
[1739164326966,3.79528,2638.4,2637.8,4.58595]
[1739164327292,3.79032,2638.3,2637.8,4.58595]
[1739164328106,3.79046,2638.2,2637.8,0.795]
[1739164328257,3.79082,2638.0,2637.6,0.7762]
[1739164329497,3.79082,2638.0,2637.4,3.51112821]
[1739164329999,3.79121,2637.7,2637.4,3.51112821]
[1739164331060,3.79098,2637.9,2637.4,3.51112821]
[1739164331261,7.58201,2637.9,2637.4,3.51112821]
[1739164331667,3.79098,2637.9,2637.4,3.51112821]
[1739164331881,0.004592,2637.9,2637.4,3.51112821]
[1739164332065,3.795492,2637.9,2637.4,3.51112821]
[1739164332483,3.79126,2637.7,2637.4,3.51112821]
[1739164332689,3.79104,2637.8,2637.4,3.51112821]
[1739164332900,0.004592,2637.8,2637.4,3.51112821]
[1739164333472,0.004592,2637.8,2637.4,7.30267821]
[1739164333774,0.004592,2637.8,2637.5,4.34142]
[1739164334174,0.004592,2637.8,2637.7,2.73492821]
[1739164334689,0.004592,2637.8,2637.7,4.06112821]
[1739164335079,0.004592,2637.8,2637.7,7.85230821]
[1739164335399,0.004592,2637.8,2637.7,7.92282764]
[1739164338188,0.004592,2637.8,2637.7,4.13164764]
[1739164338388,0.004592,2637.8,2637.7,3.35544764]
[1739164338821,0.004592,2637.8,2637.7,7.14662764]
[1739164339698,0.004592,2637.8,2637.7,7.92282764]
[1739164340112,0.004592,2637.8,2637.7,4.13164764]
[1739164341806,0.004592,2637.8,2637.7,7.92282764]
[1739164344298,0.004592,2637.8,2637.7,10.92282764]
[1739164344818,0.004592,2637.8,2637.7,13.65775585]
[1739164345202,0.004592,2637.8,2637.7,14.27197516]
[1739164345612,0.004592,2637.8,2637.7,10.82111685]
[1739164346536,0.005,2638.4,2638.3,4.34031]
[1739164346731,0.005,2638.4,2638.3,7.18310811]
[1739164347036,0.005,2638.4,2638.3,7.25374876]
[1739164347201,0.005,2638.4,2638.3,12.27274687]
[1739164347413,0.7929,2639.5,2638.9,3.78934]
[1739164347614,0.7929,2639.5,2639.2,2.01899811]
[1739164348338,0.7929,2639.5,2639.4,2.01899811]
[1739164349037,4.58107,2639.8,2639.4,2.08938763]
[1739164349238,0.7929,2640.2,2639.6,2.01899811]
[1739164349435,0.7929,2640.2,2639.8,2.01899811]
[1739164349940,4.5805,2640.2,2639.9,0.06964511]
[1739164350158,0.18718728,2640.5,2639.9,0.06964511]
[1739164350363,0.63423269,2641.1,2640.3,2.01899811]
[1739164350364,0.7929,2640.9,2640.3,2.01899811]
[1739164350532,0.7929,2640.9,2640.8,2.01899811]
[1739164350727,3.9322141,2641.1,2640.8,2.01899811]
[1739164350932,0.9388041,2641.1,2640.8,2.08592609]
[1739164351831,3.78644,2641.0,2640.8,0.06692798]
[1739164352034,3.78658,2640.9,2640.6,2.01899811]
[1739164352537,3.78644,2641.0,2640.6,2.01899811]
[1739164352730,0.9388041,2641.1,2640.6,2.01899811]
[1739164352927,3.78658,2640.9,2640.8,2.01899811]
[1739164353128,3.78658,2640.9,2640.6,2.01899811]
[1739164353344,0.9388041,2641.1,2640.8,2.01899811]
[1739164353345,4.7251141,2641.1,2640.8,2.01899811]
[1739164353578,0.9388041,2641.1,2640.8,2.01899811]
[1739164354087,3.78658,2640.9,2640.8,2.01899811]
[1739164354774,3.78658,2640.9,2640.6,2.01899811]
[1739164355069,3.78687,2640.7,2640.4,2.01899811]
[1739164355454,3.78674,2640.8,2640.4,2.01899811]
[1739164355860,0.7929,2640.6,2640.4,2.01899811]
[1739164356363,3.78694,2640.7,2640.4,2.01899811]
[1739164356555,3.78694,2640.7,2640.6,2.01899811]
[1739164357054,4.60701,2640.6,2640.0,2.01899811]
[1739164357261,3.78741,2640.4,2640.0,2.01899811]
[1739164357889,0.8199,2640.6,2640.3,2.01899811]
[1739164358279,3.78682,2640.8,2640.3,2.01899811]
[1739164358893,0.8199,2640.9,2640.6,2.01899811]
[1739164359100,0.1459041,2641.1,2640.8,5.80568811]
[1739164359396,0.1459041,2641.1,2641.0,5.80543811]
[1739164359692,0.1459041,2641.1,2641.0,7.12293811]
[1739164361763,0.1459041,2641.1,2641.0,7.18923502]
[1739164362376,0.1459041,2641.1,2641.0,6.63923502]
[1739164363278,0.1459041,2641.1,2641.0,7.18923502]
[1739164364306,0.1459041,2641.1,2641.0,6.42173502]
[1739164364818,0.1459041,2641.1,2641.0,2.63529502]
[1739164364981,0.1459041,2641.1,2641.0,6.42173502]
[1739164365519,0.1459041,2641.1,2641.0,2.08529502]
[1739164365895,0.1459041,2641.1,2641.0,0.06629691]
[1739164366247,0.1459041,2641.1,2641.0,2.01899811]
[1739164366517,0.1459041,2641.1,2641.0,2.0843442]
[1739164366917,0.1459041,2641.1,2641.0,5.8707842]
[1739164367107,0.1459041,2641.1,2641.0,6.4207842]
[1739164367312,0.1459041,2641.1,2641.0,7.1882842]
[1739164367885,0.1459041,2641.1,2641.0,6.4207842]
[1739164368089,0.1459041,2641.1,2641.0,0.06534609]
[1739164369310,0.1459041,2641.1,2640.8,2.01899811]
[1739164369486,0.1459041,2641.1,2640.9,0.06518189]
[1739164371115,0.1459041,2641.1,2641.0,3.78644]
[1739164371315,0.1459041,2641.1,2641.0,3.85161325]
[1739164371838,0.1459041,2641.1,2641.0,0.06517325]
[1739164372226,0.1459041,2641.1,2640.8,2.01899811]
[1739164372826,0.1459041,2641.1,2641.0,0.06505228]
[1739164373046,0.1459041,2641.1,2640.8,2.01899811]
[1739164373623,0.1459041,2641.1,2640.9,0.06505228]
[1739164373822,3.9322641,2641.1,2640.9,0.06505228]
[1739164374052,4.59054,2641.0,2640.9,0.06505228]
[1739164374341,4.59054,2641.0,2640.5,2.01899811]
[1739164374342,3.78677,2640.8,2640.5,2.01899811]
[1739164374510,7.57363,2640.8,2640.5,2.01899811]
[1739164374713,7.57363,2640.8,2640.6,0.06526831]
[1739164375119,4.59062,2641.0,2640.6,0.06526831]
[1739164375345,4.59062,2641.0,2640.8,2.01899811]
[1739164375912,4.59062,2641.0,2640.9,0.06526831]
[1739164376113,0.8041,2641.0,2640.9,0.06526831]
[1739164376322,0.1459041,2641.1,2640.9,0.06526831]
[1739164376715,0.1459041,2641.1,2641.0,2.01899811]
[1739164377142,0.1459041,2641.1,2641.0,2.08480223]
[1739164377447,0.1459041,2641.1,2641.0,5.87124223]
[1739164377746,0.1459041,2641.1,2641.0,6.65924223]
[1739164379247,0.1459041,2641.1,2641.0,7.20924223]
[1739164380222,0.0163007,2641.9,2641.0,10.20924223]
[1739164380427,0.0163007,2641.9,2641.8,5.80428811]
[1739164380826,0.0163007,2641.9,2641.8,2.08430105]
[1739164381539,3.8014507,2641.9,2641.8,2.08430105]
[1739164382220,0.8204007,2641.9,2641.8,2.08430105]
[1739164382425,0.0163007,2641.9,2641.8,2.08430105]
[1739164383238,0.0163007,2641.9,2641.8,0.06530294]
[1739164383757,0.0163007,2641.9,2641.8,0.06516472]
[1739164383971,3.8014507,2641.9,2641.8,0.06516472]
[1739164384260,0.0163007,2641.9,2641.6,2.01899811]
[1739164384857,0.0163007,2641.9,2641.7,0.06516472]
[1739164386530,3.78529,2641.8,2641.7,0.06516472]
[1739164387127,3.78574,2641.5,2641.3,2.01899811]
[1739164387326,3.78529,2641.8,2641.4,0.06226369]
[1739164387327,3.78569,2641.6,2641.4,0.06226369]
[1739164387773,3.78572,2641.5,2641.4,0.06226369]
[1739164388272,4.55942,2641.5,2641.4,0.06226369]
[1739164388576,3.78587,2641.4,2641.0,2.01899811]
[1739164388796,3.7863,2641.1,2641.0,2.01899811]
[1739164388942,3.78615,2641.2,2641.1,0.05843548]
[1739164390486,4.55985,2641.2,2640.7,2.01899811]
[1739164390687,3.78673,2640.8,2640.7,2.01899811]
[1739164391893,3.78647,2641.0,2640.7,2.01899811]
[1739164392891,3.78673,2640.8,2640.7,2.01899811]
[1739164393394,3.78689,2640.7,2640.4,2.01899811]
[1739164393872,3.78673,2640.8,2640.4,2.01899811]
[1739164394175,3.78691,2640.7,2640.4,2.01899811]
[1739164394966,3.78673,2640.8,2640.4,2.01899811]
[1739164395386,3.78659,2640.9,2640.7,2.01899811]
[1739164395965,3.78659,2640.9,2640.8,0.05427256]
[1739164396498,3.78673,2640.8,2640.7,2.01899811]
[1739164397422,3.78673,2640.8,2640.4,2.01899811]
[1739164397423,3.78703,2640.6,2640.4,2.01899811]
[1739164398270,4.56058,2640.7,2640.4,2.01899811]
[1739164398470,13.0,2645.4,2640.4,5.80618811]
[1739164398471,4.56019,2641.0,2640.4,5.80618811]
[1739164398806,3.78673,2640.8,2640.7,2.01899811]
[1739164399698,3.78695,2640.7,2640.4,2.01899811]
[1739164400300,3.78659,2640.9,2640.4,2.01899811]
[1739164400506,3.78659,2640.9,2640.7,2.01899811]
[1739164401799,3.78649,2641.0,2640.7,2.01899811]
[1739164402394,3.78635,2641.1,2640.7,2.01899811]
[1739164402589,4.55977,2641.3,2641.0,2.01899811]
[1739164402808,3.7863,2641.1,2641.0,2.01899811]
[1739164403988,0.7737,2641.3,2641.0,2.01899811]
[1739164404325,3.78561,2641.6,2641.0,2.01899811]
[1739164404532,7.57131,2641.6,2641.3,2.01899811]
[1739164404888,3.78561,2641.6,2641.3,2.01899811]
[1739164405090,3.78576,2641.5,2641.3,2.01899811]
[1739164405290,3.78561,2641.6,2641.3,2.01899811]
[1739164405490,3.78582,2641.5,2641.3,2.01899811]
[1739164405786,3.78561,2641.6,2641.3,2.01899811]
[1739164405996,3.78533,2641.8,2641.3,2.01899811]
[1739164406487,3.78533,2641.8,2641.1,8.3348]
[1739164406488,3.78533,2641.8,2641.6,2.01899811]
[1739164406715,3.78544,2641.7,2641.6,2.01899811]
[1739164407226,3.78533,2641.8,2641.6,2.01899811]
[1739164407813,7.57076,2641.8,2641.6,2.01899811]
[1739164408019,0.0163007,2641.9,2641.6,2.83209811]
[1739164408215,3.8014707,2641.9,2641.6,2.83209811]
[1739164408418,3.78534,2641.8,2641.6,2.01899811]
[1739164408936,3.78544,2641.7,2641.6,2.01899811]
[1739164409323,3.78561,2641.6,2641.3,2.01899811]
[1739164410098,3.78574,2641.5,2641.4,0.05487683]
[1739164410611,3.78561,2641.6,2641.4,0.05487683]
[1739164411233,3.78545,2641.7,2641.4,0.05487683]
[1739164411404,7.571,2641.7,2641.4,0.05487683]
[1739164411604,3.78572,2641.5,2641.4,0.05487683]
[1739164413640,3.78612,2641.3,2641.0,2.01899811]
[1739164414007,7.57224,2641.3,2641.1,0.05419479]
[1739164414434,3.78612,2641.3,2641.1,0.05419479]
[1739164414600,3.78615,2641.2,2641.1,0.05419479]
[1739164415361,4.57582,2641.3,2641.0,2.01899811]
[1739164415506,3.7863,2641.1,2641.0,2.01899811]
[1739164415906,3.78615,2641.2,2641.0,2.01899811]
[1739164416507,3.7863,2641.1,2641.0,2.01899811]
[1739164417713,4.57582,2641.3,2641.0,2.01899811]
[1739164417921,3.78625,2641.2,2641.0,2.01899811]
[1739164418120,4.61152,2641.7,2641.0,2.01899811]
[1739164418315,3.78571,2641.6,2641.4,2.01899811]
[1739164418553,3.78572,2641.5,2641.4,2.01899811]
[1739164420040,3.78546,2641.7,2641.4,2.01899811]
[1739164420238,3.7853,2641.8,2641.4,2.01899811]
[1739164420433,3.78561,2641.6,2641.4,2.01899811]
[1739164420921,3.78572,2641.5,2641.4,2.01899811]
[1739164421351,7.57075,2641.8,2641.4,2.01899811]
[1739164421567,3.78534,2641.8,2641.4,2.80779811]
[1739164421727,0.0163007,2641.9,2641.7,2.01899811]
[1739164421933,3.8014607,2641.9,2641.7,2.01899811]
[1739164422127,0.0163007,2641.9,2641.7,2.01899811]
[1739164422359,0.0163007,2641.9,2641.6,4.03799622]
[1739164423042,0.0163007,2641.9,2641.6,2.01899811]
[1739164424356,3.78529,2641.8,2641.6,2.01899811]
[1739164425226,3.78544,2641.7,2641.6,2.01899811]
[1739164425646,4.61129,2641.8,2640.8,5.80564811]
[1739164425647,3.78571,2641.6,2641.3,2.01899811]
[1739164425974,3.78581,2641.5,2641.3,2.01899811]
[1739164426148,3.78587,2641.4,2641.3,2.01899811]
[1739164426473,3.78603,2641.3,2641.0,2.01899811]
[1739164426674,3.78587,2641.4,2641.0,2.01899811]
[1739164427753,3.78606,2641.3,2641.0,2.01899811]
[1739164428378,3.78577,2641.5,2641.0,2.01899811]
[1739164428709,3.78548,2641.7,2641.4,2.01899811]
[1739164428710,3.78563,2641.6,2641.4,2.01899811]
[1739164429156,3.78548,2641.7,2641.4,2.01899811]
[1739164430000,7.57104,2641.7,2641.4,2.01899811]
[1739164430316,3.78548,2641.7,2641.4,2.01899811]
[1739164430581,3.8014907,2641.9,2641.4,2.01899811]
[1739164430751,0.0163007,2641.9,2641.7,2.01899811]
[1739164431766,3.8014807,2641.9,2641.7,2.01899811]
[1739164432181,3.78529,2641.8,2641.7,2.01899811]
[1739164432344,0.0163007,2641.9,2641.7,2.01899811]
[1739164433912,3.8014507,2641.9,2641.7,2.01899811]
[1739164434084,3.78529,2641.8,2641.7,2.01899811]
[1739164437114,3.78529,2641.8,2641.2,3.78606]
[1739164437313,3.78544,2641.7,2641.4,2.01899811]
[1739164437515,3.78572,2641.5,2641.4,2.01899811]
[1739164440219,3.78572,2641.5,2641.4,2.07313254]
[1739164440418,3.78572,2641.5,2641.4,0.05413443]
[1739164440419,4.56712,2641.5,2641.4,0.05413443]
[1739164440719,0.7814,2641.5,2641.1,2.01899811]
[1739164440926,3.78615,2641.2,2641.1,2.01899811]
[1739164441905,4.56717,2641.5,2640.8,2.01899811]
[1739164442112,3.78653,2641.0,2640.8,2.01899811]
[1739164443144,3.78658,2640.9,2640.8,2.01899811]
[1739164443469,3.78653,2641.0,2640.8,2.01899811]
[1739164443738,4.56725,2641.5,2640.8,4.03799622]
[1739164443887,3.78585,2641.5,2641.1,2.80309811]
[1739164444106,3.78585,2641.5,2641.3,2.01899811]
[1739164444734,3.78585,2641.5,2641.1,2.01899811]
[1739164444906,3.78609,2641.3,2641.1,2.01899811]
[1739164445106,3.78579,2641.5,2641.1,2.01899811]
[1739164445631,3.78587,2641.4,2641.1,2.01899811]
[1739164445988,3.78579,2641.5,2641.1,2.01899811]
[1739164447196,4.56691,2641.7,2641.1,2.01899811]
[1739164447392,3.78588,2641.4,2641.1,2.01899811]
[1739164447837,3.78603,2641.3,2641.1,2.01899811]
[1739164448035,3.78617,2641.2,2640.8,2.80309811]
[1739164449408,7.57244,2641.2,2640.8,2.80309811]
[1739164449610,3.78631,2641.1,2640.8,2.80309811]
[1739164449811,3.78645,2641.0,2640.8,2.01899811]
[1739164450541,7.573,2641.0,2640.8,2.01899811]
[1739164450749,3.78645,2641.0,2640.8,2.01899811]
[1739164451111,3.78623,2641.2,2640.8,2.01899811]
[1739164451307,0.8237,2641.6,2641.1,2.01899811]
[1739164451508,3.78615,2641.2,2641.1,2.01899811]
[1739164453561,3.78668,2640.9,2640.8,2.01899811]
[1739164453931,3.78668,2640.9,2640.5,2.01899811]
[1739164454110,3.7869,2640.7,2640.5,2.01899811]
[1739164454450,3.78667,2640.9,2640.5,2.01899811]
[1739164454822,3.78688,2640.7,2640.5,2.01899811]
[1739164455227,7.57338,2640.9,2640.6,0.05501498]
[1739164455430,3.78667,2640.9,2640.6,0.05501498]
[1739164455633,3.78687,2640.7,2640.6,0.05501498]
[1739164455822,3.78662,2640.9,2640.6,0.05501498]
[1739164456029,3.78611,2641.3,2640.8,2.01899811]
[1739164456254,3.78611,2641.3,2640.7,0.7775]
[1739164456255,7.57223,2641.3,2641.1,2.01899811]
[1739164456456,3.78611,2641.3,2641.1,2.01899811]
[1739164456748,3.78615,2641.2,2641.1,2.01899811]
[1739164458363,3.7863,2641.1,2640.8,2.01899811]
[1739164460333,4.60965,2641.4,2640.9,3.78648]
[1739164460555,3.78601,2641.3,2641.2,2.01899811]
[1739164462049,3.78601,2641.3,2641.2,2.07401309]
[1739164463129,7.57156,2641.5,2641.2,2.07401309]
[1739164463365,3.7855,2641.7,2641.2,6.63765309]
[1739164463667,3.7855,2641.7,2641.5,2.01899811]
[1739164464248,3.7855,2641.7,2641.6,0.05501498]
[1739164464563,7.57082,2641.8,2641.6,0.05501498]
[1739164464751,3.78544,2641.7,2641.6,0.05501498]
[1739164464946,3.78541,2641.8,2641.6,0.05501498]
[1739164465259,3.78544,2641.7,2641.6,0.05501498]
[1739164467333,3.7854,2641.8,2641.6,0.05501498]
[1739164467531,3.78544,2641.7,2641.6,0.05501498]
[1739164468959,3.7854,2641.8,2641.6,0.05501498]
[1739164469168,0.0163007,2641.9,2641.7,2.01899811]
[1739164469347,3.78529,2641.8,2641.7,2.01899811]
[1739164470067,0.0163007,2641.9,2641.6,2.01899811]
[1739164470241,0.0163007,2641.9,2641.8,2.01899811]
[1739164470806,0.0163007,2641.9,2641.8,0.0533814]